lending/lending_fUSD_20250130
["ID","MTS","AMOUNT","RATE_DAILY","PERIOD"]
[350994496,1738272658298,-1830.98,0.00019178,2]
[350994497,1738272658307,-151.0,0.00019178,2]
[350994498,1738272658317,-151.0,0.00019178,2]
[350994499,1738272658327,-500.0,0.00019178,2]
[350994500,1738272658336,-1110.71,0.00019178,2]
[350994501,1738272658345,-505.32637312,0.00019178,2]
[350994502,1738272658358,-500.0,0.00019178,2]
[350994503,1738272658368,-2651.1,0.00019178,2]
[350994504,1738272658378,-1260.18,0.00019178,2]
[350994505,1738272658387,-502.96516541,0.00019178,2]
[350994506,1738272658397,-729.71,0.00019178,2]
[350994507,1738272658407,-500.0,0.00019178,2]
[350994508,1738272658416,-500.0,0.00019178,2]
[350994509,1738272658426,-1345.02,0.00019178,2]
[350994510,1738272658435,-505.29507542,0.00019178,2]
[350994511,1738272658445,-500.0,0.00019178,2]
[350994512,1738272658454,-1426.63,0.00019178,2]
[350994513,1738272658463,-500.0,0.00019178,2]
[350994514,1738272658471,-501.42772387,0.00019178,2]
[350994515,1738272658480,-1366.92,0.00019178,2]
[350994516,1738272658489,-500.0,0.00019178,2]
[350994517,1738272658500,-500.0,0.00019178,2]
[350994518,1738272658509,-500.0,0.00019178,2]
[350994519,1738272658518,-500.50636773,0.00019178,2]
[350994520,1738272658528,-1168.15,0.00019178,2]
[350994521,1738272658538,-500.0,0.00019178,2]
[350994522,1738272658548,-626.97,0.00019178,2]
[350994523,1738272658557,-500.0,0.00019178,2]
[350994524,1738272658567,-1973.0,0.00019178,2]
[350994525,1738272658576,-500.0,0.00019178,2]
[350994526,1738272658586,-500.0,0.00019178,2]
[350994527,1738272658595,-2046.24,0.00019178,2]
[350994528,1738272658604,-162.02550065,0.00019178,2]
[350994529,1738272658614,-500.0,0.00019178,2]
[350994530,1738272658623,-500.0,0.00019178,2]
[350994531,1738272658632,-500.0,0.00019178,2]
[350994532,1738272658643,-2362.02,0.00019178,2]
[350994533,1738272658652,-500.0,0.00019178,2]
[350994534,1738272658661,-500.0,0.00019178,2]
[350994535,1738272658671,-1535.54,0.00019178,2]
[350994536,1738272658680,-500.0,0.00019178,2]
[350994537,1738272658690,-500.0,0.00019178,2]
[350994538,1738272658699,-500.0,0.00019178,2]
[350994539,1738272658708,-500.0,0.00019178,2]
[350994540,1738272658718,-500.0,0.00019178,2]
[350994541,1738272658727,-4445.7,0.00019178,2]
[350994542,1738272658737,-1878.51,0.00019178,2]
[350994543,1738272658747,-500.0,0.00019178,2]
[350994544,1738272658756,-500.0,0.00019178,2]
[350994545,1738272658765,-908.6,0.00019178,2]
[350994546,1738272658775,-500.0,0.00019178,2]
[350994547,1738272658786,-500.0,0.00019178,2]
[350994548,1738272658796,-954.41,0.00019178,2]
[350994549,1738272658805,-500.0,0.00019178,2]
[350994550,1738272658814,-500.0,0.00019178,2]
[350994551,1738272658823,-500.0,0.00019178,2]
[350994552,1738272658833,-500.0,0.00019178,2]
[350994553,1738272658842,-778.03,0.00019178,2]
[350994554,1738272658851,-500.0,0.00019178,2]
[350994555,1738272658860,-500.0,0.00019178,2]
[350994556,1738272658870,-500.0,0.00019178,2]
[350994557,1738272658880,-1159.38,0.00019178,2]
[350994558,1738272658889,-1809.94,0.00019178,2]
[350994559,1738272658899,-933.64,0.00019178,2]
[350994560,1738272658908,-500.0,0.00019178,2]
[350994561,1738272658917,-4492.25,0.00019178,2]
[350994562,1738272658927,-500.0,0.00019178,2]
[350994563,1738272658936,-500.0,0.00019178,2]
[350994564,1738272658946,-500.0,0.00019178,2]
[350994565,1738272658956,-500.0,0.00019178,2]
[350994566,1738272658966,-500.0,0.00019178,2]
[350994567,1738272658975,-587.06992791,0.00019178,2]
[350994568,1738272658984,-500.0,0.00019178,2]
[350994569,1738272658994,-500.0,0.00019178,2]
[350994570,1738272659003,-1706.96,0.00019178,2]
[350994571,1738272659012,-500.0,0.00019178,2]
[350994572,1738272659021,-1110.4,0.00019178,2]
[350994573,1738272659030,-500.0,0.00019178,2]
[350994574,1738272659040,-569.99,0.00019178,2]
[350994575,1738272659049,-509.440097,0.00019178,2]
[350994576,1738272659059,-500.0,0.00019178,2]
[350994577,1738272659069,-1210.12,0.00019178,2]
[350994578,1738272659079,-500.0,0.00019178,2]
[350994579,1738272659092,-500.0,0.00019178,2]
[350994580,1738272659104,-500.0,0.00019178,2]
[350994581,1738272659115,-500.0,0.00019178,2]
[350994582,1738272659125,-500.0,0.00019178,2]
[350994583,1738272659135,-500.0,0.00019178,2]
[350994584,1738272659144,-500.0,0.00019178,2]
[350994585,1738272659155,-500.0,0.00019178,2]
[350994586,1738272659165,-719.79,0.00019178,2]
[350994587,1738272659174,-3227.18,0.00019178,2]
[350994588,1738272659185,-500.0,0.00019178,2]
[350994589,1738272659195,-940.52,0.00019178,2]
[350994590,1738272659205,-2614.33,0.00019178,2]
[350994591,1738272659215,-582.78919358,0.00019178,2]
[350994592,1738272659224,-500.0,0.00019178,2]
[350994593,1738272659234,-500.0,0.00019178,2]
[350994594,1738272659243,-500.0,0.00019178,2]
[350994595,1738272659253,-2155.08,0.00019178,2]
[350994596,1738272659262,-3568.2,0.00019178,2]
[350994597,1738272659272,-500.0,0.00019178,2]
[350994598,1738272659281,-500.0,0.00019178,2]
[350994599,1738272659290,-500.0,0.00019178,2]
[350994600,1738272659299,-500.0,0.00019178,2]
[350994601,1738272659308,-951.27,0.00019178,2]
[350994602,1738272659317,-500.0,0.00019178,2]
[350994603,1738272659326,-500.0,0.00019178,2]
[350994604,1738272659334,-500.0,0.00019178,2]
[350994605,1738272659343,-542.04,0.00019178,2]
[350994606,1738272659356,-500.0,0.00019178,2]
[350994607,1738272659365,-500.0,0.00019178,2]
[350994608,1738272659374,-500.0,0.00019178,2]
[350994609,1738272659383,-489.973182,0.00019178,2]
[350994610,1738272659393,-500.0,0.00019178,2]
[350994611,1738272659402,-940.24,0.00019178,2]
[350994612,1738272659411,-489.973182,0.00019178,2]
[350994613,1738272659421,-489.973182,0.00019178,2]
[350994614,1738272659431,-500.0,0.00019178,2]
[350994615,1738272659441,-489.973182,0.00019178,2]
[350994616,1738272659450,-489.973182,0.00019178,2]
[350994617,1738272659459,-1072.16,0.00019178,2]
[350994618,1738272659468,-489.973182,0.00019178,2]
[350994619,1738272659478,-2258.68,0.00019178,2]
[350994620,1738272659487,-1965.43,0.00019178,2]
[350994621,1738272659498,-392.743207,0.00019178,2]
[350994622,1738272659507,-392.743207,0.00019178,2]
[350994623,1738272659517,-489.973182,0.00019178,2]
[350994624,1738272659528,-1442.09,0.00019178,2]
[350994625,1738272659538,-489.973182,0.00019178,2]
[350994626,1738272659548,-775.31,0.00019178,2]
[350994627,1738272659557,-489.973182,0.00019178,2]
[350994628,1738272659566,-489.973182,0.00019178,2]
[350994629,1738272659576,-2755.22,0.00019178,2]
[350994630,1738272659585,-500.0,0.00019178,2]
[350994631,1738272659594,-489.973182,0.00019178,2]
[350994632,1738272659603,-500.0,0.00019178,2]
[350994633,1738272659612,-151.0,0.00019178,2]
[350994634,1738272659621,-151.0,0.00019178,2]
[350994635,1738272659630,-489.97318,0.00019178,2]
[350994636,1738272659639,-151.0,0.00019178,2]
[350994637,1738272659648,-151.0,0.00019178,2]
[350994638,1738272659658,-3141.3,0.00019178,2]
[350994639,1738272659667,-392.743207,0.00019178,2]
[350994640,1738272659676,-392.743207,0.00019178,2]
[350994641,1738272659686,-392.743207,0.00019178,2]
[350994642,1738272659696,-392.743207,0.00019178,2]
[350994643,1738272659706,-151.0,0.00019178,2]
[350994644,1738272659715,-151.0,0.00019178,2]
[350994645,1738272659725,-190.715303,0.00019178,2]
[350994646,1738272659735,-500.0,0.00019178,2]
[350994647,1738272659744,-1103.49,0.00019178,2]
[350994648,1738272659754,-392.743207,0.00019178,2]
[350994649,1738272659764,-392.743207,0.00019178,2]
[350994650,1738272659773,-392.743207,0.00019178,2]
[350994651,1738272659784,-863.36,0.00019178,2]
[350994652,1738272659793,-392.743207,0.00019178,2]
[350994653,1738272659803,-959.43,0.00019178,2]
[350994654,1738272659812,-1611.79,0.00019178,2]
[350994655,1738272659823,-1387.43,0.00019178,2]
[350994656,1738272659832,-392.743207,0.00019178,2]
[350994657,1738272659841,-392.743214,0.00019178,2]
[350994658,1738272659851,-500.0,0.00019178,2]
[350994659,1738272659860,-7506.88,0.00019178,2]
[350994660,1738272659871,-502.3479393,0.00019178,2]
[350994661,1738272659880,-500.0,0.00019178,2]
[350994662,1738272659890,-500.0,0.00019178,2]
[350994663,1738272659900,-2517.72,0.00019178,2]
[350994664,1738272659910,-501.36454919,0.00019178,2]
[350994665,1738272659920,-2518.07,0.00019178,2]
[350994666,1738272659930,-500.0,0.00019178,2]
[350994667,1738272659939,-500.0,0.00019178,2]
[350994668,1738272659949,-3585.26,0.00019178,2]
[350994669,1738272659959,-559.22775998,0.00019178,2]
[350994670,1738272659968,-500.0,0.00019178,2]
[350994671,1738272659978,-500.0,0.00019178,2]
[350994672,1738272659988,-500.0,0.00019178,2]
[350994673,1738272659999,-515.58,0.00019178,2]
[350994674,1738272660010,-777.78,0.00019178,2]
[350994675,1738272660020,-1058.61,0.00019178,2]
[350994676,1738272660030,-500.0,0.00019178,2]
[350994677,1738272660045,-828.25,0.00019178,2]
[350994678,1738272660055,-500.0,0.00019178,2]
[350994679,1738272660065,-500.0,0.00019178,2]
[350994680,1738272660075,-500.0,0.00019178,2]
[350994681,1738272660084,-3634.03,0.00019178,2]
[350994682,1738272660094,-1126.37,0.00019178,2]
[350994683,1738272660104,-1174.12,0.00019178,2]
[350994684,1738272660114,-500.0,0.00019178,2]
[350994685,1738272660123,-500.0,0.00019178,2]
[350994686,1738272660133,-1987.6,0.00019178,2]
[350994687,1738272660143,-819.47,0.00019178,2]
[350994688,1738272660153,-500.0,0.00019178,2]
[350994689,1738272660163,-3562.14,0.00019178,2]
[350994690,1738272660173,-500.0,0.00019178,2]
[350994691,1738272660183,-501.5746627,0.00019178,2]
[350994692,1738272660192,-500.0,0.00019178,2]
[350994693,1738272660204,-2239.72,0.00019178,2]
[350994694,1738272660214,-2099.44,0.00019178,2]
[350994695,1738272660224,-2135.76,0.00019178,2]
[350994696,1738272660234,-500.0,0.00019178,2]
[350994697,1738272660244,-1843.4,0.00019178,2]
[350994698,1738272660253,-500.0,0.00019178,2]
[350994699,1738272660263,-503.22002613,0.00019178,2]
[350994700,1738272660273,-866.95,0.00019178,2]
[350994701,1738272660282,-501.15,0.00019178,2]
[350994702,1738272660294,-1463.64,0.00019178,2]
[350994703,1738272660305,-500.0,0.00019178,2]
[350994704,1738272660315,-615.93262043,0.00019178,2]
[350994705,1738272660324,-894.32,0.00019178,2]
[350994706,1738272660333,-500.0,0.00019178,2]
[350994707,1738272660343,-500.0,0.00019178,2]
[350994708,1738272660354,-1413.16,0.00019178,2]
[350994709,1738272660365,-5933.57,0.00019178,2]
[350994710,1738272660375,-500.0,0.00019178,2]
[350994711,1738272660384,-500.0,0.00019178,2]
[350994712,1738272660394,-1047.68,0.00019178,2]
[350994713,1738272660405,-500.0,0.00019178,2]
[350994714,1738272660414,-500.0,0.00019178,2]
[350994715,1738272660424,-2987.19,0.00019178,2]
[350994716,1738272660439,-506.0,0.00019178,2]
[350994717,1738272660449,-500.0,0.00019178,2]
[350994718,1738272660459,-237.040129,0.00019178,2]
[350994719,1738272660468,-1464.38,0.00019178,2]
[350994720,1738272660478,-237.040129,0.00019178,2]
[350994721,1738272660489,-1947.42,0.00019178,2]
[350994722,1738272660499,-151.0,0.00019178,2]
[350994723,1738272660509,-237.040129,0.00019178,2]
[350994724,1738272660519,-151.0,0.00019178,2]
[350994725,1738272660529,-500.0,0.00019178,2]
[350994726,1738272660541,-237.040129,0.00019178,2]
[350994727,1738272660551,-151.0,0.00019178,2]
[350994728,1738272660561,-544.04,0.00019178,2]
[350994729,1738272660571,-151.0,0.00019178,2]
[350994730,1738272660580,-151.0,0.00019178,2]
[350994731,1738272660590,-151.646608,0.00019178,2]
[350994732,1738272660599,-151.0,0.00019178,2]
[350994733,1738272660610,-237.040129,0.00019178,2]
[350994734,1738272660619,-500.0,0.00019178,2]
[350994735,1738272660630,-500.0,0.00019178,2]
[350994736,1738272660640,-151.0,0.00019178,2]
[350994737,1738272660650,-237.040129,0.00019178,2]
[350994738,1738272660659,-2459.47,0.00019178,2]
[350994739,1738272660668,-151.0,0.00019178,2]
[350994740,1738272660678,-151.0,0.00019178,2]
[350994741,1738272660687,-151.0,0.00019178,2]
[350994742,1738272660698,-151.0,0.00019178,2]
[350994743,1738272660708,-151.0,0.00019178,2]
[350994744,1738272660717,-151.0,0.00019178,2]
[350994745,1738272660727,-237.040129,0.00019178,2]
[350994746,1738272660737,-151.0,0.00019178,2]
[350994747,1738272660747,-237.040129,0.00019178,2]
[350994748,1738272660757,-151.0,0.00019178,2]
[350994749,1738272660766,-590.64274566,0.00019178,2]
[350994750,1738272660776,-237.040129,0.00019178,2]
[350994751,1738272660786,-237.040129,0.00019178,2]
[350994752,1738272660796,-151.0,0.00019178,2]
[350994753,1738272660806,-237.040129,0.00019178,2]
[350994754,1738272660816,-151.0,0.00019178,2]
[350994755,1738272660826,-237.040132,0.00019178,2]
[350994756,1738272660835,-554.53,0.00019178,2]
[350994757,1738272660846,-151.0,0.00019178,2]
[350994758,1738272660856,-242.53391,0.00019178,2]
[350994759,1738272660865,-1991.09,0.00019178,2]
[350994760,1738272660875,-151.0,0.00019178,2]
[350994761,1738272660884,-500.0,0.00019178,2]
[350994762,1738272660895,-151.0,0.00019178,2]
[350994763,1738272660905,-500.0,0.00019178,2]
[350994764,1738272660915,-188.016666,0.00019178,2]
[350994765,1738272660925,-1489.96,0.00019178,2]
[350994766,1738272660934,-500.0,0.00019178,2]
[350994767,1738272660944,-500.0,0.00019178,2]
[350994768,1738272660954,-500.0,0.00019178,2]
[350994769,1738272660965,-500.0,0.00019178,2]
[350994770,1738272660975,-500.0,0.00019178,2]
[350994771,1738272660985,-501.57008576,0.00019178,2]
[350994772,1738272660995,-748.71,0.00019178,2]
[350994773,1738272661005,-500.0,0.00019178,2]
[350994774,1738272661014,-500.0,0.00019178,2]
[350994775,1738272661024,-4978.22,0.00019178,2]
[350994776,1738272661036,-504.21156813,0.00019178,2]
[350994777,1738272661046,-500.0,0.00019178,2]
[350994778,1738272661056,-500.0,0.00019178,2]
[350994779,1738272661065,-775.95,0.00019178,2]
[350994780,1738272661075,-2796.76,0.00019178,2]
[350994781,1738272661084,-500.0,0.00019178,2]
[350994782,1738272661094,-510.49797432,0.00019178,2]
[350994783,1738272661104,-500.0,0.00019178,2]
[350994784,1738272661113,-2386.37,0.00019178,2]
[350994785,1738272661123,-500.0,0.00019178,2]
[350994786,1738272661132,-500.0,0.00019178,2]
[350994787,1738272661142,-500.0,0.00019178,2]
[350994788,1738272661151,-1696.16,0.00019178,2]
[350994789,1738272661161,-506.33822527,0.00019178,2]
[350994790,1738272661170,-500.0,0.00019178,2]
[350994791,1738272661180,-500.0,0.00019178,2]
[350994792,1738272661190,-1046.77,0.00019178,2]
[350994793,1738272661199,-18623.41,0.00019178,2]
[350994794,1738272661209,-500.0,0.00019178,2]
[350994795,1738272661219,-504.4319237,0.00019178,2]
[350994796,1738272661228,-3273.77,0.00019178,2]
[350994797,1738272661238,-2652.11,0.00019178,2]
[350994798,1738272661248,-1583.6,0.00019178,2]
[350994799,1738272661258,-500.0,0.00019178,2]
[350994800,1738272661267,-7477.53,0.00019178,2]
[350994801,1738272661277,-1036.86,0.00019178,2]
[350994802,1738272661289,-1418.27,0.00019178,2]
[350994803,1738272661299,-2237.22,0.00019178,2]
[350994804,1738272661309,-899.34,0.00019178,2]
[350994805,1738272661319,-2320.37,0.00019178,2]
[350994806,1738272661328,-500.0,0.00019178,2]
[350994807,1738272661338,-3361.76,0.00019178,2]
[350994808,1738272661348,-500.0,0.00019178,2]
[350994809,1738272661360,-3399.32,0.00019178,2]
[350994810,1738272661370,-500.0,0.00019178,2]
[350994811,1738272661380,-3316.46,0.00019178,2]
[350994812,1738272661390,-500.0,0.00019178,2]
[350994813,1738272661400,-1469.35,0.00019178,2]
[350994814,1738272661409,-500.0,0.00019178,2]
[350994815,1738272661419,-1549.36,0.00019178,2]
[350994816,1738272661430,-2108.73,0.00019178,2]
[350994817,1738272661440,-500.0,0.00019178,2]
[350994818,1738272661451,-500.0,0.00019178,2]
[350994819,1738272661461,-519.07,0.00019178,2]
[350994820,1738272661471,-1385.62,0.00019178,2]
[350994821,1738272661481,-2467.74,0.00019178,2]
[350994822,1738272661491,-2742.7,0.00019178,2]
[350994823,1738272661500,-936.06,0.00019178,2]
[350994824,1738272661510,-3411.44,0.00019178,2]
[350994825,1738272661519,-412.566298,0.00019178,2]
[350994826,1738272661529,-500.0,0.00019178,2]
[350994827,1738272661540,-412.566298,0.00019178,2]
[350994828,1738272661549,-412.566298,0.00019178,2]
[350994829,1738272661559,-412.566298,0.00019178,2]
[350994830,1738272661569,-412.566298,0.00019178,2]
[350994831,1738272661581,-412.566298,0.00019178,2]
[350994832,1738272661591,-500.0,0.00019178,2]
[350994833,1738272661603,-500.0,0.00019178,2]
[350994834,1738272661614,-412.566298,0.00019178,2]
[350994835,1738272661624,-412.566298,0.00019178,2]
[350994836,1738272661634,-412.566298,0.00019178,2]
[350994837,1738272661643,-412.566298,0.00019178,2]
[350994838,1738272661653,-412.566298,0.00019178,2]
[350994839,1738272661663,-412.566299,0.00019178,2]
[350994840,1738272661672,-510.4989088,0.00019178,2]
[350994841,1738272661682,-1433.2,0.00019178,2]
[350994842,1738272661692,-500.0,0.00019178,2]
[350994843,1738272661703,-528.441253,0.00019178,2]
[350994844,1738272661713,-528.441253,0.00019178,2]
[350994845,1738272661723,-528.441253,0.00019178,2]
[350994846,1738272661734,-528.441253,0.00019178,2]
[350994847,1738272661744,-500.0,0.00019178,2]
[350994848,1738272661754,-500.0,0.00019178,2]
[350994849,1738272661765,-10025.1,0.00019178,2]
[350994850,1738272661775,-2898.7,0.00019178,2]
[350994851,1738272661787,-863.8,0.00019178,2]
[350994852,1738272661798,-1712.51,0.00019178,2]
[350994853,1738272661808,-528.441253,0.00019178,2]
[350994854,1738272661818,-528.441253,0.00019178,2]
[350994855,1738272661829,-550.71,0.00019178,2]
[350994856,1738272661838,-528.441253,0.00019178,2]
[350994857,1738272661849,-528.441261,0.00019178,2]
[350994858,1738272661859,-500.0,0.00019178,2]
[350994859,1738272661869,-1459.26,0.00019178,2]
[350994860,1738272661879,-500.0,0.00019178,2]
[350994861,1738272661890,-504.39135523,0.00019178,2]
[350994862,1738272661900,-3388.01,0.00019178,2]
[350994863,1738272662200,-769.65,0.00019178,2]
[350994864,1738272662212,-669.68,0.00019178,2]
[350994865,1738272662223,-500.0,0.00019178,2]
[350994866,1738272662233,-758.17,0.00019178,2]
[350994867,1738272662243,-500.0,0.00019178,2]
[350994868,1738272662255,-664.93,0.00019178,2]
[350994869,1738272662265,-500.0,0.00019178,2]
[350994870,1738272662274,-500.0,0.00019178,2]
[350994871,1738272662283,-637.66501696,0.00019178,2]
[350994872,1738272662294,-3194.76,0.00019178,2]
[350994873,1738272662303,-500.0,0.00019178,2]
[350994874,1738272662312,-4921.92,0.00019178,2]
[350994875,1738272662322,-500.0,0.00019178,2]
[350994876,1738272662332,-500.0,0.00019178,2]
[350994877,1738272662342,-655.8,0.00019178,2]
[350994878,1738272662353,-1669.45,0.00019178,2]
[350994879,1738272662366,-500.0,0.00019178,2]
[350994880,1738272662376,-1512.8,0.00019178,2]
[350994881,1738272662387,-1666.62,0.00019178,2]
[350994882,1738272662398,-500.0,0.00019178,2]
[350994883,1738272662408,-1363.82,0.00019178,2]
[350994884,1738272662418,-500.0,0.00019178,2]
[350994885,1738272662427,-564.85653766,0.00019178,2]
[350994886,1738272662440,-500.0,0.00019178,2]
[350994887,1738272662450,-500.0,0.00019178,2]
[350994888,1738272662460,-769.88,0.00019178,2]
[350994889,1738272662471,-3538.82,0.00019178,2]
[350994890,1738272662482,-500.0,0.00019178,2]
[350994891,1738272662493,-500.0,0.00019178,2]
[350994892,1738272662503,-934.65,0.00019178,2]
[350994893,1738272662512,-700.4,0.00019178,2]
[350994894,1738272662523,-669.76,0.00019178,2]
[350994895,1738272662533,-3767.22,0.00019178,2]
[350994896,1738272662544,-2795.58,0.00019178,2]
[350994897,1738272662554,-1226.68,0.00019178,2]
[350994898,1738272662564,-803.96,0.00019178,2]
[350994899,1738272662574,-500.0,0.00019178,2]
[350994900,1738272662583,-1851.14,0.00019178,2]
[350994901,1738272662594,-1665.81,0.00019178,2]
[350994902,1738272662604,-513.1488095,0.00019178,2]
[350994903,1738272662613,-5913.52,0.00019178,2]
[350994904,1738272662623,-3079.1,0.00019178,2]
[350994905,1738272662633,-591.64,0.00019178,2]
[350994906,1738272662642,-1325.46,0.00019178,2]
[350994907,1738272662652,-500.0,0.00019178,2]
[350994908,1738272662662,-594.28,0.00019178,2]
[350994909,1738272662671,-500.0,0.00019178,2]
[350994910,1738272662680,-1564.32,0.00019178,2]
[350994911,1738272662690,-500.0,0.00019178,2]
[350994912,1738272662700,-500.0,0.00019178,2]
[350994913,1738272662710,-5290.61,0.00019178,2]
[350994914,1738272662720,-710.58,0.00019178,2]
[350994915,1738272662730,-501.26049239,0.00019178,2]
[350994916,1738272662741,-1119.13,0.00019178,2]
[350994917,1738272662750,-1044.08,0.00019178,2]
[350994918,1738272662759,-693.37,0.00019178,2]
[350994919,1738272662769,-500.0,0.00019178,2]
[350994920,1738272662780,-500.0,0.00019178,2]
[350994921,1738272662790,-624.25,0.00019178,2]
[350994922,1738272662800,-678.77,0.00019178,2]
[350994923,1738272662810,-500.0,0.00019178,2]
[350994924,1738272662821,-500.0,0.00019178,2]
[350994925,1738272662831,-936.16,0.00019178,2]
[350994926,1738272662842,-1083.65,0.00019178,2]
[350994927,1738272662852,-615.63,0.00019178,2]
[350994928,1738272662863,-500.0,0.00019178,2]
[350994929,1738272662873,-500.0,0.00019178,2]
[350994930,1738272662883,-500.0,0.00019178,2]
[350994931,1738272662892,-294.784735,0.00019178,2]
[350994932,1738272662903,-294.784735,0.00019178,2]
[350994933,1738272662913,-294.784735,0.00019178,2]
[350994934,1738272662925,-294.784735,0.00019178,2]
[350994935,1738272662935,-500.0,0.00019178,2]
[350994936,1738272662945,-1566.92,0.00019178,2]
[350994937,1738272662955,-500.0,0.00019178,2]
[350994938,1738272662965,-500.0,0.00019178,2]
[350994939,1738272662975,-294.784735,0.00019178,2]
[350994940,1738272662986,-294.784735,0.00019178,2]
[350994941,1738272662996,-294.784735,0.00019178,2]
[350994942,1738272663006,-500.0,0.00019178,2]
[350994943,1738272663017,-294.784743,0.00019178,2]
[350994944,1738272663029,-3212.99,0.00019178,2]
[350994945,1738272663042,-500.0,0.00019178,2]
[350994946,1738272663053,-2029.9,0.00019178,2]
[350994947,1738272663064,-500.0,0.00019178,2]
[350994948,1738272663075,-502.84860879,0.00019178,2]
[350994949,1738272663086,-1570.6,0.00019178,2]
[350994950,1738272663096,-500.0,0.00019178,2]
[350994951,1738272663106,-1501.81,0.00019178,2]
[350994952,1738272663117,-500.0,0.00019178,2]
[350994953,1738272663127,-2873.53,0.00019178,2]
[350994954,1738272663137,-500.0,0.00019178,2]
[350994955,1738272663148,-500.0,0.00019178,2]
[350994956,1738272663158,-500.0,0.00019178,2]
[350994957,1738272663168,-991.31,0.00019178,2]
[350994958,1738272663178,-505.56169964,0.00019178,2]
[350994959,1738272663188,-500.0,0.00019178,2]
[350994960,1738272663198,-521.26,0.00019178,2]
[350994961,1738272663208,-500.0,0.00019178,2]
[350994962,1738272663219,-514.19175644,0.00019178,2]
[350994963,1738272663229,-500.0,0.00019178,2]
[350994964,1738272663238,-1316.29,0.00019178,2]
[350994965,1738272663248,-516.81,0.00019178,2]
[350994966,1738272663257,-2977.28,0.00019178,2]
[350994967,1738272663267,-500.0,0.00019178,2]
[350994968,1738272663277,-500.0,0.00019178,2]
[350994969,1738272663289,-500.0,0.00019178,2]
[350994970,1738272663299,-500.0,0.00019178,2]
[350994971,1738272663309,-500.0,0.00019178,2]
[350994972,1738272663319,-815.91,0.00019178,2]
[350994973,1738272663330,-345.60384371,0.00019178,2]
[350994974,1738272663341,-709.59,0.00019178,2]
[350994975,1738272663352,-500.0,0.00019178,2]
[350994976,1738272663362,-2832.45,0.00019178,2]
[350994977,1738272663373,-500.0,0.00019178,2]
[350994978,1738272663382,-500.0,0.00019178,2]
[350994979,1738272663392,-500.0,0.00019178,2]
[350994980,1738272663402,-972.22,0.00019178,2]
[350994981,1738272663412,-4087.75,0.00019178,2]
[350994982,1738272663421,-500.0,0.00019178,2]
[350994983,1738272663433,-1837.42,0.00019178,2]
[350994984,1738272663443,-1264.38,0.00019178,2]
[350994985,1738272663453,-1165.18,0.00019178,2]
[350994986,1738272663463,-500.0,0.00019178,2]
[350994987,1738272663473,-500.0,0.00019178,2]
[350994988,1738272663483,-500.0,0.00019178,2]
[350994989,1738272663493,-323.18700995,0.00019178,2]
[350994990,1738272663503,-2347.57,0.00019178,2]
[350994991,1738272663514,-505.51364149,0.00019178,2]
[350994992,1738272663523,-500.0,0.00019178,2]
[350994993,1738272663533,-500.0,0.00019178,2]
[350994994,1738272663545,-500.0,0.00019178,2]
[350994995,1738272663555,-2314.39,0.00019178,2]